bitfinex-derivatives/quotes_SOLF0:USTF0_20250212
["timestamp","ask_amount","ask_price","bid_price","bid_amount"]
[1739350506386,5.12293052,196.44,196.41,0.03331822]
[1739350506779,5.0908,196.44,196.41,0.03303817]
[1739350506986,5.12959135,196.44,196.41,0.03303817]
[1739350507684,5.0913,196.42,196.41,0.03303817]
[1739350508087,8.94786232,196.43,196.41,0.03303817]
[1739350510484,5.12959135,196.44,196.41,0.03303817]
[1739350511989,0.03879135,196.44,196.41,0.03303817]
[1739350514085,8.94786232,196.43,196.41,0.03303817]
[1739350514597,5.0913,196.42,196.41,0.03303817]
[1739350515593,8.94786232,196.43,196.31,5.094]
[1739350515791,8.94786232,196.36,196.31,5.094]
[1739350516093,8.94786232,196.36,196.3,11.97526232]
[1739350516395,14.04146232,196.34,196.3,3.0274]
[1739350516793,14.07458777,196.34,196.3,0.03484132]
[1739350518092,8.94786232,196.32,196.3,0.03484132]
[1739350519799,5.0942,196.31,196.3,0.03484132]
[1739350520599,8.94786232,196.32,196.3,0.03484132]
[1739350521200,5.0942,196.31,196.3,0.03484132]
[1739350528301,8.94786232,196.32,196.3,0.03484132]
[1739350528599,8.98098777,196.34,196.3,0.03484132]
[1739350529202,0.03312545,196.34,196.31,5.0942]
[1739350529398,0.03312545,196.34,196.3,8.98270364]
[1739350530803,0.03312545,196.34,196.3,14.07710364]
[1739350532602,0.03312545,196.34,196.31,5.0941]
[1739350533004,0.03312545,196.34,196.3,8.98270364]
[1739350533505,0.03312545,196.34,196.3,14.07710364]
[1739350534109,8.98098777,196.34,196.3,0.03484132]
[1739350535807,14.07448777,196.34,196.3,0.03484132]
[1739350537310,8.98098777,196.34,196.3,0.03484132]
[1739350538307,5.0937,196.33,196.3,0.03484132]
[1739350538514,8.98098777,196.34,196.3,0.03484132]
[1739350539012,5.094,196.32,196.3,0.03484132]
[1739350539213,8.94786232,196.32,196.3,0.03484132]
[1739350540713,5.0942,196.31,196.3,0.03484132]
[1739350546713,5.0956,196.26,196.2,8.94786232]
[1739350546914,14.04346232,196.26,196.2,8.94786232]
[1739350547920,0.03706301,196.25,196.21,0.03333487]
[1739350548917,8.94786232,196.24,196.21,0.03333487]
[1739350549823,5.0963,196.23,196.21,0.03333487]
[1739350550016,8.94786232,196.22,196.21,0.03333487]
[1739350550723,14.04436232,196.22,196.21,0.03333487]
[1739350551124,8.94786232,196.22,196.21,0.03333487]
[1739350551323,8.94786232,196.24,196.21,0.03333487]
[1739350551828,0.03706301,196.25,196.21,0.03333487]
[1739350555128,0.03706301,196.25,196.21,5.13013487]
[1739350555325,0.03706301,196.25,196.22,8.94786232]
[1739350555726,0.03706301,196.25,196.24,8.94786232]
[1739350556227,0.03706301,196.25,196.24,14.04386232]
[1739350557124,8.94786232,196.32,196.24,8.94786232]
[1739350557332,8.94786232,196.32,196.27,5.0952]
[1739350557730,14.04176232,196.32,196.27,5.0952]
[1739350558030,8.94786232,196.32,196.26,8.94786232]
[1739350558226,5.0942,196.31,196.26,8.94786232]
[1739350558530,5.12721902,196.31,196.27,0.03731986]
[1739350559528,0.03301902,196.31,196.27,0.03731986]
[1739350560331,0.03301902,196.31,196.27,5.13251986]
[1739350560533,0.03301902,196.31,196.27,0.03731986]
[1739350561834,5.12721902,196.31,196.27,0.03731986]
[1739350562034,8.94786232,196.3,196.27,0.03731986]
[1739350562534,5.0948,196.29,196.27,0.03731986]
[1739350562735,8.94786232,196.3,196.27,0.03731986]
[1739350563136,14.04256232,196.3,196.27,0.03731986]
[1739350564933,0.03301902,196.31,196.27,0.03731986]
[1739350566839,0.03301902,196.31,196.28,5.0947]
[1739350569541,0.03301902,196.31,196.27,5.13251986]
[1739350572547,5.12721902,196.31,196.27,5.13251986]
[1739350576048,0.03301902,196.31,196.27,0.03731986]
[1739350576250,8.94786232,196.3,196.27,0.03731986]
[1739350576449,5.095,196.28,196.27,0.03731986]
[1739350577948,14.04286232,196.28,196.27,0.03731986]
[1739350579251,5.0963,196.23,196.18,8.94786232]
[1739350579444,14.04416232,196.23,196.18,8.94786232]
[1739350580250,0.03511525,196.22,196.19,0.03216964]
[1739350581748,0.03511525,196.22,196.2,5.0969]
[1739350582551,0.03511525,196.22,196.21,5.0968]
[1739350583044,0.03511525,196.22,196.2,8.94786232]
[1739350583652,0.03511525,196.22,196.19,5.12916964]
[1739350585954,0.03511525,196.22,196.19,0.03216964]
[1739350586556,8.94786232,196.21,196.19,0.03216964]
[1739350586757,5.097,196.2,196.19,0.03216964]
[1739350587554,14.04466232,196.21,196.19,0.03216964]
[1739350588455,5.13171525,196.22,196.19,0.03216964]
[1739350588757,0.03511525,196.22,196.19,0.03216964]
[1739350590959,8.94786232,196.2,196.19,0.03216964]
[1739350591351,14.04486232,196.2,196.19,0.03216964]
[1739350591555,8.98297757,196.22,196.19,0.03216964]
[1739350591955,14.04486232,196.2,196.19,0.03216964]
[1739350592864,8.94786232,196.2,196.19,0.03216964]
[1739350594261,8.98297757,196.22,196.19,0.03216964]
[1739350595664,0.03511525,196.22,196.19,0.03216964]
[1739350596762,0.03511525,196.22,196.19,5.12936964]
[1739350598061,0.03511525,196.22,196.21,5.0968]
[1739350599164,0.03511525,196.22,196.21,14.04466232]
[1739350604871,8.94786232,196.3,196.21,8.94786232]
[1739350605174,8.94786232,196.32,196.26,8.94786232]
[1739350605571,8.94786232,196.32,196.28,5.0949]
[1739350606173,8.98099822,196.32,196.29,5.0947]
[1739350606677,8.98099822,196.32,196.28,0.03343637]
[1739350606973,8.98099822,196.32,196.28,5.12833637]
[1739350611176,8.98099822,196.32,196.28,0.03343637]
[1739350611177,14.07499822,196.32,196.28,0.03343637]
[1739350611679,14.04236232,196.3,196.28,0.03343637]
[1739350613582,5.0947,196.29,196.28,0.03343637]
[1739350620983,5.0956,196.26,196.21,5.0966]
[1739350621186,8.94786232,196.25,196.21,5.0966]
[1739350622089,8.98499575,196.25,196.21,5.13437181]
[1739350623187,14.08099575,196.25,196.21,0.03777181]
[1739350623395,8.98499575,196.25,196.21,0.03777181]
[1739350623579,8.94786232,196.23,196.21,0.03777181]
[1739350624189,5.0965,196.22,196.21,0.03777181]
[1739350630992,8.94786232,196.23,196.14,14.04636232]
[1739350631291,8.94786232,196.19,196.14,5.0985]
[1739350632192,0.03785956,196.18,196.15,0.03370991]
[1739350632592,8.94786232,196.17,196.15,0.03370991]
[1739350633288,5.0981,196.16,196.15,0.03370991]
[1739350635495,8.94786232,196.17,196.15,0.03370991]
[1739350637595,0.03785956,196.18,196.15,0.03370991]
[1739350638299,0.03785956,196.18,196.15,5.13200991]
[1739350638697,0.03785956,196.18,196.15,0.03370991]
[1739350640297,5.13545956,196.18,196.15,0.03370991]
[1739350641299,0.03785956,196.18,196.15,0.03370991]
[1739350641497,5.0979,196.17,196.15,0.03370991]
[1739350641799,8.94786232,196.17,196.15,0.03370991]
[1739350642196,5.0981,196.16,196.15,0.03370991]
[1739350645906,8.94786232,196.17,196.15,0.03370991]
[1739350647915,5.0981,196.16,196.15,0.03370991]
[1739350652608,8.94786232,196.17,196.06,8.94786232]
[1739350652808,14.04756232,196.1,196.05,4.663]
[1739350653209,5.1,196.09,196.05,3.0651]
[1739350653408,8.94786232,196.08,196.03,5.1014]
[1739350653604,8.94786232,196.08,196.02,8.94786232]
[1739350653809,0.03294594,196.07,196.04,0.03611934]
[1739350654412,8.94786232,196.06,196.04,0.03611934]
[1739350655311,5.1009,196.05,196.04,0.03611934]
[1739350658209,8.94786232,196.06,196.04,0.03611934]
[1739350659616,14.04866232,196.06,196.04,0.03611934]
[1739350660620,5.1009,196.05,196.04,0.03611934]
[1739350663723,8.94786232,196.06,196.04,0.03611934]
[1739350664617,5.1009,196.05,196.04,0.03611934]
[1739350669528,5.102,196.02,195.96,5.1033]
[1739350669722,8.94786232,196.0,195.97,5.103]
[1739350670321,8.94786232,196.02,195.97,5.103]
[1739350670830,0.03913404,196.01,195.98,5.13764503]
[1739350673433,0.03913404,196.01,195.98,0.03494503]
[1739350673635,8.94786232,196.0,195.98,0.03494503]
[1739350674033,5.1025,195.99,195.98,0.03494503]
[1739350676231,5.1037,195.95,195.88,14.05316232]
[1739350676432,8.94786232,195.93,195.88,14.05316232]
[1739350676631,8.94786232,195.93,195.88,8.94786232]
[1739350676833,8.94786232,195.93,195.87,9.669]
[1739350677531,0.03605013,195.92,195.88,5.14089739]
[1739350677734,0.03605013,195.92,195.88,0.03559739]
[1739350678131,0.03605013,195.92,195.89,5.1051]
[1739350679138,8.94786232,195.95,195.88,8.98345971]
[1739350679342,8.94786232,195.98,195.94,5.1036]
[1739350679639,8.94786232,195.98,195.92,8.94786232]
[1739350680239,8.94786232,195.98,195.9,8.94786232]
[1739350680438,0.03454327,195.97,195.93,0.03877843]
[1739350680639,0.03454327,195.97,195.94,8.94786232]
[1739350680837,0.03454327,195.97,195.96,5.1033]
[1739350683836,0.03454327,195.97,195.94,1.4999]
[1739350684032,0.03454327,195.97,195.93,0.03877843]
[1739350684440,8.94786232,195.96,195.93,0.03877843]
[1739350685739,8.94786232,195.96,195.93,5.14267843]
[1739350686244,8.94786232,195.96,195.93,0.03877843]
[1739350686545,8.94786232,195.94,195.93,0.03877843]
[1739350686941,8.94786232,195.96,195.93,0.03877843]
[1739350687341,8.94786232,195.96,195.93,5.14277843]
[1739350688045,8.94786232,195.96,195.93,0.03877843]
[1739350689545,0.03454327,195.97,195.93,0.03877843]
[1739350691837,0.03454327,195.97,195.94,5.1038]
[1739350692940,0.03454327,195.97,195.93,0.03877843]
[1739350693137,0.03454327,195.97,195.95,5.1035]
[1739350693743,0.03454327,195.97,195.94,5.1038]
[1739350695343,0.03454327,195.97,195.93,0.03877843]
[1739350695647,8.94786232,195.94,195.93,0.03877843]
[1739350696745,14.05166232,195.94,195.93,0.03877843]
[1739350698147,5.1047,195.91,195.85,5.1059]
[1739350698341,8.94786232,195.89,195.82,8.94786232]
[1739350698640,8.94786232,195.87,195.8,8.94786232]
[1739350699042,8.94786232,195.85,195.8,8.94786232]
[1739350699239,8.98419033,195.85,195.82,0.03729877]
[1739350699948,0.03632801,195.85,195.82,8.98516109]
[1739350700749,0.03632801,195.85,195.83,5.1064]
[1739350701249,0.03632801,195.85,195.82,8.98516109]
[1739350702845,0.03632801,195.85,195.84,5.1064]
[1739350703743,8.94786232,195.91,195.87,5.1054]
[1739350704148,8.94786232,195.91,195.86,8.94786232]
[1739350704447,8.94786232,195.93,195.79,4.7627]
[1739350704647,8.94786232,195.95,195.88,8.94786232]
[1739350704945,8.94786232,195.95,195.9,8.94786232]
[1739350705149,0.03744647,195.93,195.92,5.1041]
[1739350707950,0.03744647,195.93,195.91,0.03312287]
[1739350710850,0.03744647,195.93,195.92,5.1043]
[1739350711756,0.03744647,195.93,195.91,5.13772287]
[1739350712055,0.03744647,195.93,195.91,0.03312287]
[1739350715450,0.03744647,195.93,195.91,5.13762287]
[1739350715960,0.03744647,195.93,195.91,0.03312287]
[1739350717956,0.03744647,195.93,195.92,5.1043]
[1739350726370,0.03744647,195.93,195.91,0.03312287]
[1739350726673,0.03744647,195.93,195.92,5.1043]
[1739350727465,0.03744647,195.93,195.91,5.13742287]
[1739350728177,0.03744647,195.93,195.92,5.1043]
[1739350728874,0.03744647,195.93,195.92,14.10999143]
[1739350729275,4.647e-05,195.93,195.92,14.10999143]
[1739350733072,9.00569143,196.07,195.92,9.00569143]
[1739350733283,9.00569143,196.07,196.01,9.00569143]
[1739350733578,9.00569143,196.05,195.99,9.00569143]
[1739350733979,5.1013,196.04,195.99,9.00569143]
[1739350734180,5.13423069,196.04,196.0,0.0349405]
[1739350734382,0.03293069,196.04,196.0,0.0349405]
[1739350737882,0.03293069,196.04,196.01,9.00569143]
[1739350738282,0.03293069,196.04,196.03,9.00569143]
[1739350738780,0.03293069,196.04,196.03,14.10719143]
[1739350739486,9.00569143,196.13,196.07,5.1004]
[1739350739682,9.00569143,196.13,196.07,9.00569143]
[1739350740290,9.00569143,196.15,196.09,9.00569143]
[1739350740486,0.03749924,196.12,196.09,9.00569143]
[1739350740883,0.03749924,196.12,196.09,14.10559143]
[1739350741486,0.03749924,196.12,196.09,9.00569143]
[1739350743187,0.03749924,196.12,196.09,14.10549143]
[1739350743387,0.03749924,196.12,196.11,9.00569143]
[1739350743887,0.03749924,196.12,196.11,14.10509143]
[1739350744694,0.03749924,196.12,196.11,9.00569143]
[1739350745280,0.03749924,196.12,196.09,1.5685]
[1739350745281,0.03749924,196.12,196.09,9.00569143]
[1739350745480,0.03749924,196.12,196.08,0.03473474]
[1739350745889,5.0998,196.1,196.08,0.03473474]
[1739350746988,5.0999,196.09,196.08,0.03473474]
[1739350747491,5.0997,196.1,196.08,0.03473474]
[1739350747989,0.03749924,196.12,196.08,0.03473474]
[1739350748294,5.0994,196.11,196.08,0.03473474]
[1739350751081,0.03749924,196.12,196.08,0.03473474]
[1739350751483,9.00569143,196.11,196.08,0.03473474]
[1739350752192,5.0996,196.1,196.08,0.03473474]
[1739350753193,14.10509143,196.11,196.08,0.03473474]
[1739350753385,9.00569143,196.11,196.08,0.03473474]
[1739350753584,0.03749924,196.12,196.08,5.13463474]
[1739350753785,0.03749924,196.12,196.08,0.03473474]
[1739350753988,0.03749924,196.12,196.1,5.0994]
[1739350754191,0.03749924,196.12,196.11,9.00569143]
[1739350755597,0.03749924,196.12,196.11,14.10509143]
[1739350760300,5.0973,196.19,196.14,5.0984]
[1739350760500,5.0973,196.19,196.14,14.10409143]
[1739350761199,204.00569143,196.21,196.14,14.10409143]
[1739350761396,5.0976,196.18,196.16,0.03228056]
[1739350762503,14.10349143,196.17,196.16,0.03228056]
[1739350762701,9.00569143,196.17,196.1,9.00569143]
[1739350762897,9.00569143,196.15,196.08,9.00569143]
[1739350763092,5.0982,196.16,196.1,9.00569143]
[1739350763600,5.0982,196.16,196.11,5.0994]
[1739350763800,0.0330285,196.15,196.11,5.13447268]
[1739350764998,0.0330285,196.15,196.12,9.00569143]
[1739350766405,0.0330285,196.15,196.11,0.03507268]
[1739350767403,9.03871993,196.15,196.11,0.03507268]
[1739350768005,14.13731993,196.15,196.11,0.03507268]
[1739350768401,0.0330285,196.15,196.11,0.03507268]
[1739350768608,0.0330285,196.15,196.11,5.13447268]
[1739350770208,0.0330285,196.15,196.12,5.0991]
[1739350771704,0.0330285,196.15,196.11,0.03507268]
[1739350772910,0.0330285,196.15,196.11,5.13427268]
[1739350773110,0.0330285,196.15,196.11,0.03507268]
[1739350773806,0.0330285,196.15,196.12,5.0991]
[1739350774911,0.0330285,196.15,196.13,5.0988]
[1739350777013,0.0330285,196.15,196.14,5.0986]
[1739350777214,0.0330285,196.15,196.14,14.10429143]
[1739350777911,0.0330285,196.15,196.14,9.00569143]
[1739350779920,9.00569143,196.26,196.21,5.0968]
[1739350780113,9.00569143,196.26,196.03,269.21068141]
[1739350780114,9.00569143,196.28,196.23,9.00569143]
[1739350780615,5.0955,196.26,196.21,9.00569143]
[1739350781011,9.00569143,196.28,196.21,9.00569143]
[1739350781215,5.13135069,196.25,196.22,0.03425953]
[1739350785019,0.03555069,196.25,196.22,0.03425953]
[1739350785618,5.13145069,196.25,196.22,0.03425953]
[1739350786220,0.03555069,196.25,196.22,0.03425953]
[1739350788820,5.13135069,196.25,196.22,0.03425953]
[1739350790818,0.03555069,196.25,196.22,0.03425953]
[1739350791511,0.03555069,196.25,196.22,5.13075953]
[1739350792421,0.03555069,196.25,196.23,14.10189143]
[1739350793312,0.03555069,196.25,196.23,9.00569143]
[1739350793516,0.03555069,196.25,196.24,5.096]
[1739350794325,0.03555069,196.25,196.23,9.00569143]
[1739350795419,0.03555069,196.25,196.22,0.03425953]
[1739350797526,0.03555069,196.25,196.22,5.13075953]
[1739350798624,0.03555069,196.25,196.22,0.03425953]
[1739350798827,0.03555069,196.25,196.23,5.0963]
[1739350799225,0.03555069,196.25,196.23,14.10199143]
[1739350800326,0.03555069,196.25,196.23,9.00569143]
[1739350801629,0.03555069,196.25,196.23,14.10189143]
[1739350801930,0.03555069,196.25,196.23,9.00569143]
[1739350802336,0.03555069,196.25,196.22,0.03425953]
[1739350803022,0.03555069,196.25,196.22,5.13075953]
[1739350803226,0.03555069,196.25,196.23,9.00569143]
[1739350803624,0.03555069,196.25,196.24,5.096]
[1739350804034,9.00569143,196.34,196.23,9.00569143]
[1739350804232,9.00569143,196.36,196.3,9.00569143]
[1739350804429,9.00569143,196.38,196.3,9.00569143]
[1739350804628,13.78569143,196.4,196.32,9.00569143]
[1739350805338,9.00569143,196.36,196.34,0.03905132]
[1739350805531,9.00569143,196.36,196.26,9.00569143]
[1739350805730,5.0945,196.3,196.26,9.00569143]
[1739350805935,5.0945,196.3,196.24,9.00569143]
[1739350805936,9.00569143,196.3,196.24,9.00569143]
[1739350806237,4.78,196.4,196.13,1.5198]
[1739350806238,9.00569143,196.28,196.22,9.00569143]
[1739350806536,9.00569143,196.26,196.2,9.00569143]
[1739350806739,9.00569143,196.26,196.23,0.03563355]
[1739350807434,5.096,196.24,196.23,0.03563355]
[1739350807637,14.10169143,196.24,196.23,0.03563355]
[1739350814140,9.00569143,196.24,196.16,9.00569143]
[1739350814340,5.0975,196.19,196.16,9.00569143]
[1739350815242,9.00569143,196.17,196.09,1.5408]
[1739350815445,9.00569143,196.14,196.09,1.5408]
[1739350815640,9.00569143,196.14,196.11,0.0329589]
[1739350815839,0.03543704,196.13,196.11,0.0329589]
[1739350816537,9.00569143,196.12,196.11,0.0329589]
[1739350817140,14.10479143,196.12,196.11,0.0329589]
[1739350822249,5.1002,196.08,196.02,10.61309143]
[1739350822438,9.00569143,196.08,196.02,10.61309143]
[1739350823042,9.00569143,196.12,196.06,9.00569143]
[1739350823637,0.03657852,196.11,196.07,0.03761044]
[1739350824046,5.13617852,196.11,196.07,0.03761044]
[1739350825745,9.00569143,196.1,196.07,0.03761044]
[1739350825947,14.10589143,196.08,196.07,0.03761044]
[1739350833050,9.00569143,196.1,196.07,0.03761044]
[1739350833849,0.03657852,196.11,196.07,0.03761044]
[1739350835345,5.13597852,196.11,196.07,0.03761044]
[1739350835644,0.03657852,196.11,196.07,0.03761044]
[1739350836352,5.0999,196.09,196.07,0.03761044]
[1739350836653,9.00569143,196.08,196.07,0.03761044]
[1739350837047,14.10589143,196.08,196.07,0.03761044]
[1739350838653,9.00569143,196.08,195.96,9.00569143]
[1739350838853,9.00569143,196.02,195.96,9.00569143]
[1739350839252,14.10769143,196.02,195.96,9.00569143]
[1739350839654,9.00569143,196.02,195.96,9.00569143]
[1739350839856,0.03367972,196.01,195.97,0.03870732]
[1739350840555,9.00569143,196.0,195.97,0.03870732]
[1739350842148,0.03367972,196.01,195.97,0.03870732]
[1739350842354,0.03367972,196.01,195.97,5.14170732]
[1739350846955,0.03367972,196.01,195.97,0.03870732]
[1739350850166,0.03367972,196.01,195.97,5.14170732]
[1739350852568,9.09324167,196.17,195.99,9.00569143]
[1739350852768,84.80694761,196.18,196.12,9.00569143]
[1739350853068,84.80694761,196.18,196.14,9.00569143]
[1739350853269,84.80694761,196.18,196.15,5.0983]
[1739350853569,84.80694761,196.18,196.12,14.0351679]
[1739350853766,84.840793,196.18,196.15,0.03434653]
[1739350854670,84.840793,196.18,196.15,5.13264653]
[1739350855874,0.03384539,196.18,196.15,0.03434653]
[1739350860381,5.0979,196.17,196.15,0.03434653]
[1739350860576,14.0351679,196.16,196.15,0.03434653]
[1739350860882,5.0985,196.15,196.07,5.1002]
[1739350861077,14.0351679,196.16,196.07,5.1002]
[1739350861278,14.0351679,196.16,196.03,14.0351679]
[1739350861679,14.0351679,196.13,196.03,14.0351679]
[1739350861980,14.0351679,196.13,196.02,1.5933]
[1739350862182,0.0385443,196.1,196.06,0.03804687]
[1739350862577,14.0737122,196.1,196.06,0.03804687]
[1739350863984,5.1,196.09,196.06,0.03804687]
[1739350864181,0.0385443,196.1,196.06,0.03804687]
[1739350866087,5.1004,196.08,196.06,0.03804687]
[1739350866983,0.0385443,196.1,196.06,0.03804687]
[1739350867687,0.0385443,196.1,195.96,8.1877]
[1739350867688,5.1018,196.02,195.96,8.1877]
[1739350867884,5.1018,196.02,195.96,3.0846]
[1739350868281,14.0351679,196.04,195.96,3.0846]
[1739350868481,5.102,196.01,195.96,3.0846]
[1739350868684,14.0351679,196.04,195.96,3.0846]
[1739350868887,0.03584501,196.0,195.97,0.03304449]
[1739350870877,5.13834501,196.0,195.97,0.03304449]
[1739350871283,0.03584501,196.0,195.97,0.03304449]
[1739350871482,5.1028,195.98,195.97,0.03304449]
[1739350872290,19.1379679,195.98,195.97,0.03304449]
[1739350872586,5.104,195.94,195.88,14.0351679]
[1739350873282,5.1036,195.95,195.88,19.1404679]
[1739350873581,0.03306871,195.93,195.89,0.03605512]
[1739350876185,5.13716871,195.93,195.89,0.03605512]
[1739350876382,0.03306871,195.93,195.89,0.03605512]
[1739350876580,5.1046,195.91,195.89,0.03605512]
[1739350877796,0.03306871,195.93,195.89,0.03605512]
[1739350877797,5.1049,195.9,195.89,0.03605512]
[1739350879493,5.1046,195.91,195.89,0.03605512]
[1739350879799,0.03306871,195.93,195.89,0.03605512]
[1739350880598,5.1043,195.92,195.89,0.03605512]
[1739350881201,5.13716871,195.93,195.89,0.03605512]
[1739350882102,5.1044,195.92,195.89,0.03605512]
[1739350882601,0.03306871,195.93,195.89,0.03605512]
[1739350882803,5.1044,195.92,195.89,0.03605512]
[1739350886710,5.1047,195.91,195.89,0.03605512]
[1739350886907,0.03306871,195.93,195.89,0.03605512]
[1739350887810,5.13736871,195.93,195.89,0.03605512]
[1739350888011,0.03306871,195.93,195.89,0.03605512]
[1739350888511,5.1046,195.91,195.89,0.03605512]
[1739350889411,5.1044,195.92,195.89,0.03605512]
[1739350890107,5.1046,195.91,195.89,0.03605512]
[1739350890515,0.03306871,195.93,195.89,0.03605512]
[1739350890708,5.1048,195.91,195.89,0.03605512]
[1739350890909,0.03306871,195.93,195.89,0.03605512]
[1739350891812,5.1049,195.9,195.89,0.03605512]
[1739350896213,14.0351679,195.92,195.76,14.0351679]
[1739350896418,14.0351679,195.87,195.76,14.0351679]
[1739350897215,5.1067,195.83,195.77,5.108]
[1739350897416,0.03732044,195.83,195.8,0.03870664]
[1739350899220,0.03732044,195.83,195.8,5.14610664]
[1739350900519,0.03732044,195.83,195.8,0.03870664]
[1739350900823,0.03732044,195.83,195.81,5.1072]
[1739350901919,0.03732044,195.83,195.82,5.1069]
[1739350902120,195.0,195.92,195.82,14.0351679]
[1739350902321,5.1049,195.9,195.82,14.0351679]
[1739350903023,5.1049,195.9,195.84,5.1062]
[1739350903223,0.03503403,195.88,195.84,5.14257389]
[1739350905125,0.03503403,195.88,195.84,0.03637389]
[1739350905326,0.03503403,195.88,195.85,14.0351679]
[1739350905823,0.03503403,195.88,195.87,5.1056]
[1739350906325,0.03503403,195.88,195.85,5.1059]
[1739350906521,0.03503403,195.88,195.84,0.03637389]
[1739350906915,0.03503403,195.88,195.86,5.1059]
[1739350907225,0.03503403,195.88,195.84,0.03637389]
[1739350907524,5.14043403,195.88,195.84,0.03637389]
[1739350907718,0.03503403,195.88,195.84,0.03637389]
[1739350909724,5.14043403,195.88,195.84,0.03637389]
[1739350910528,14.07020193,195.88,195.84,0.03637389]
[1739350910826,5.1062,195.85,195.84,0.03637389]
[1739350912127,14.07020193,195.88,195.84,0.03637389]
[1739350912928,19.17570193,195.88,195.84,0.03637389]
[1739350913928,5.1057,195.87,195.84,0.03637389]
[1739350914930,14.07020193,195.88,195.84,0.03637389]
[1739350915525,19.17570193,195.88,195.84,0.03637389]
[1739350915725,14.07020193,195.88,195.84,0.03637389]
[1739350915922,0.03503403,195.88,195.84,0.03637389]
[1739350916824,0.03503403,195.88,195.85,5.1059]
[1739350917823,0.03503403,195.88,195.84,0.03637389]
[1739350918331,5.14043403,195.88,195.84,0.03637389]
[1739350920534,0.03503403,195.88,195.84,0.03637389]
[1739350921036,5.14043403,195.88,195.84,0.03637389]
[1739350921333,0.03503403,195.88,195.84,0.03637389]
[1739350921635,14.12083606,195.86,195.84,0.03637389]
[1739350922129,9.01473606,195.86,195.84,0.03637389]
[1739350923532,5.1059,195.87,195.84,0.03637389]
[1739350924038,9.04977009,195.88,195.85,5.106]
[1739350924233,0.03503403,195.88,195.84,9.05110995]
[1739350924435,0.03503403,195.88,195.86,9.01473606]
[1739350924935,0.03503403,195.88,195.87,5.1056]
[1739350926637,0.03503403,195.88,195.85,3.1273]
[1739350926837,0.03503403,195.88,195.85,6.6727]
[1739350927028,0.03503403,195.88,195.85,1.5666]
[1739350927437,0.03503403,195.88,195.86,5.1059]
[1739350928734,0.03503403,195.88,195.84,5.14277389]
[1739350929737,0.03503403,195.88,195.85,5.1061]
[1739350929935,0.03503403,195.88,195.84,0.03637389]
[1739350930138,5.1062,195.86,195.84,0.03637389]
[1739350930839,14.10923114,195.88,195.84,0.03637389]
[1739350931136,19.18039711,195.85,195.84,0.03637389]
[1739350934639,5.1062,195.85,195.84,0.03637389]
[1739350937542,14.10923114,195.88,195.84,0.03637389]
[1739350937838,5.1059,195.87,195.84,0.03637389]
[1739350938045,0.03503403,195.88,195.84,0.03637389]
[1739350938640,0.03503403,195.88,195.84,5.14257389]
[1739350939741,0.03503403,195.88,195.84,0.03637389]
[1739350941744,5.14043403,195.88,195.84,0.03637389]
[1739350942845,5.14043403,195.88,195.84,5.14277389]
[1739350943146,5.14043403,195.88,195.84,0.03637389]
[1739350943742,0.03503403,195.88,195.85,14.07419711]
[1739350944043,14.07419711,196.0,195.91,5.1046]
[1739350944241,5.1032,195.97,195.89,14.07419711]
[1739350945034,0.03591366,195.95,195.91,0.03465704]
[1739350946241,5.13971366,195.95,195.91,0.03465704]
[1739350947642,5.13971366,195.95,195.91,5.13915704]
[1739350947838,0.03591366,195.95,195.91,0.03465704]
[1739350948038,5.1038,195.94,195.91,0.03465704]
[1739350948640,0.03591366,195.95,195.91,5.13925704]
[1739350949647,0.03591366,195.95,195.91,0.03465704]
[1739350949948,5.13971366,195.95,195.91,0.03465704]
[1739350950147,0.03591366,195.95,195.91,0.03465704]
[1739350950646,14.07419711,195.94,195.91,0.03465704]
[1739350951148,5.1043,195.92,195.91,0.03465704]
[1739350953148,14.07419711,195.94,195.81,1.6346]
[1739350953149,209.07419711,195.94,195.81,1.6346]
[1739350953345,14.07419711,195.89,195.8,67.58843527]
[1739350953645,14.07419711,195.89,195.8,66.08773527]
[1739350953849,5.106,195.86,195.8,66.08773527]
[1739350954245,0.03711148,195.85,195.81,0.03809665]
[1739350955950,5.14331148,195.85,195.81,0.03809665]
[1739350956150,0.03711148,195.85,195.81,5.14529665]
[1739350956352,0.03711148,195.85,195.81,0.03809665]
[1739350957354,5.14351148,195.85,195.81,0.03809665]
[1739350957952,0.03711148,195.85,195.81,5.14529665]
[1739350958153,0.03711148,195.85,195.81,0.03809665]
[1739350959058,0.03711148,195.85,195.82,5.1067]
[1739350961160,0.03711148,195.85,195.84,5.1064]
[1739350962955,0.03711148,195.85,195.81,0.03809665]
[1739350963160,0.03711148,195.85,195.82,5.1067]
[1739350963862,0.03711148,195.85,195.83,5.1067]
[1739350964462,0.03711148,195.85,195.84,5.1064]
[1739350965061,0.03711148,195.85,195.81,0.03809665]
[1739350967864,0.03711148,195.85,195.82,5.1068]
[1739350970462,0.03711148,195.85,195.83,5.1066]
[1739350971466,0.03711148,195.85,195.81,0.03809665]
[1739350971662,0.03711148,195.85,195.81,5.14509665]